bitfinex/quotes_SOLUSD_20260308
["timestamp","ask_amount","ask_price","bid_price","bid_amount"]
[1773010896957,12.17876602,82.12,82.083,0.9144843]
[1773010897158,12.17876602,82.13,82.083,0.9144843]
[1773010897363,12.17876602,82.11,82.083,0.9144843]
[1773010897545,24.35761998,82.11,82.084,12.18264217]
[1773010897746,12.17814105,82.115,82.084,12.18264217]
[1773010898056,12.17876602,82.11,82.084,12.18264217]
[1773010898259,12.17876602,82.11,82.082,12.18293901]
[1773010898561,12.17876602,82.11,82.082,13.09742331]
[1773010899959,12.17893288,82.109,82.081,7.89673374]
[1773010900162,12.17876602,82.1,82.057,0.9144843]
[1773010900370,12.17876602,82.09,82.057,0.9144843]
[1773010900549,12.17876602,82.09,82.061,12.1859743]
[1773010900750,12.17876602,82.08,82.057,0.9144843]
[1773010900952,12.17876602,82.08,82.058,12.18650223]
[1773010901461,12.17876602,82.08,82.045,30.47100799]
[1773010901462,12.17876602,82.08,82.046,0.9144843]
[1773010901667,12.17876602,82.07,82.035,13.10440323]
[1773010901967,3.69383402,82.102,82.038,0.9144843]
[1773010902175,12.17876602,82.08,82.038,0.9144843]
[1773010902468,12.17876602,82.08,82.041,0.9144843]
[1773010902679,12.17876602,82.08,82.042,0.9144843]
[1773010904371,12.17876602,82.07,82.043,12.18873029]
[1773010904578,12.17876602,82.06,82.037,12.1894938]
[1773010904879,12.17876602,82.08,82.038,1.05664587]
[1773010905082,60.88438757,82.123,82.038,1.05664587]
[1773010905083,12.17876602,82.09,82.042,0.9144843]
[1773010905257,12.17876602,82.08,82.042,0.9144843]
[1773010906081,12.17876602,82.07,82.042,0.9144843]
[1773010906378,12.17876602,82.08,82.043,12.18873029]
[1773010906585,12.17876602,82.08,82.044,0.9144843]
[1773010907582,42.62678423,82.108,82.044,0.9144843]
[1773010907583,12.17876602,82.09,82.044,0.9144843]
[1773010908078,12.17876602,82.08,82.044,0.9144843]
[1773010908673,12.17876602,82.09,82.046,0.9144843]
[1773010908872,12.17876602,82.08,82.046,0.9144843]
[1773010909491,12.17876602,82.07,82.025,0.9144843]
[1773010909666,0.28432314,82.089,82.015,0.9144843]
[1773010909667,12.17876602,82.05,82.015,0.9144843]
[1773010910769,12.18783897,82.049,82.017,0.9144843]
[1773010911363,12.17876602,82.04,82.008,12.19393229]
[1773010911569,12.17876602,82.03,82.003,12.1946256]
[1773010911865,12.17876602,82.03,81.93,7.35125212]
[1773010911866,12.17876602,82.01,81.955,0.9144843]
[1773010912069,12.17876602,81.99,81.955,0.9144843]
[1773010912282,12.17876602,82.02,81.955,0.9144843]
[1773010912461,12.17876602,82.01,81.956,4.82477569]
[1773010912668,12.17876602,82.01,81.96,0.9144843]
[1773010912862,12.17876602,82.03,81.968,0.9144843]
[1773010913075,12.17876602,82.02,81.971,0.9144843]
[1773010913274,12.17876602,82.02,81.973,0.9144843]
[1773010914183,24.37097591,82.02,81.976,0.9144843]
[1773010914884,12.17876602,82.02,81.976,0.9144843]
[1773010915188,12.17876602,82.04,81.98,0.9144843]
[1773010916195,12.17876602,82.04,81.983,0.9144843]
[1773010916568,12.18932458,82.039,81.991,0.9144843]
[1773010916897,12.18783897,82.049,81.991,0.9144843]
[1773010917570,12.17876602,82.04,81.991,0.9144843]
[1773010917791,12.17876602,82.03,81.991,0.9144843]
[1773010917988,12.17876602,82.04,81.991,0.9144843]
[1773010918284,12.17876602,82.04,81.994,0.9144843]
[1773010918675,12.17876602,82.03,81.994,0.9144843]
[1773010919684,12.17876602,82.04,81.994,0.9144843]
[1773010920681,12.17876602,82.04,81.983,0.28432314]
[1773010920682,12.17876602,82.04,81.997,0.9144843]
[1773010920989,12.17876602,82.14,82.011,0.9144843]
[1773010921360,12.17876602,82.1,82.031,4.82477569]
[1773010921588,12.17876602,82.09,82.041,0.9144843]
[1773010921796,12.17876602,82.1,82.041,0.9144843]
[1773010922003,12.17876602,82.09,82.041,0.9144843]
[1773010922593,24.36062798,82.09,82.043,1.05664587]
[1773010924392,12.17876602,82.08,82.043,0.9144843]
[1773010924594,12.17876602,82.08,81.984,10.58356846]
[1773010924595,12.17876602,82.08,82.019,0.9144843]
[1773010924596,12.17876602,82.05,82.019,0.9144843]
[1773010924793,12.17876602,82.04,82.009,0.9144843]
[1773010925002,12.17876602,82.05,82.009,0.9144843]
[1773010925205,12.17876602,82.06,82.01,4.82477569]
[1773010925400,12.17876602,82.07,82.012,0.9144843]
[1773010925789,12.17876602,82.06,82.012,0.9144843]
[1773010926191,12.17876602,82.04,82.012,0.9144843]
[1773010926881,12.18932458,82.039,82.013,12.19318888]
[1773010927513,12.17876602,82.04,82.013,12.19318888]
[1773010927687,24.36807443,82.04,82.013,12.19318888]
[1773010928081,12.17876602,82.04,82.013,12.19318888]
[1773010928694,12.17876602,82.04,82.014,0.9144843]
[1773010928896,12.17876602,82.06,82.016,0.9144843]
[1773010929109,12.18535493,82.066,82.017,1.05664587]
[1773010929406,12.17876602,82.07,82.02,0.9144843]
[1773010929596,12.17876602,82.07,82.021,1.05664587]
[1773010929792,12.17876602,82.05,81.979,60.99075628]
[1773010930003,12.17876602,82.03,81.985,0.9144843]
[1773010930296,12.17876602,82.02,81.985,0.9144843]
[1773010930811,12.17876602,82.02,81.986,12.1972044]
[1773010931011,12.1922969,82.019,81.987,0.9144843]
[1773010931706,12.17876602,82.04,81.991,0.9144843]
[1773010931909,48.69854655,82.138,81.991,0.9144843]
[1773010931910,12.17876602,82.03,81.991,0.9144843]
[1773010932424,12.17876602,82.02,81.991,0.9144843]
[1773010932704,12.17876602,82.03,81.991,0.9144843]
[1773010933089,12.17876602,82.02,81.993,0.9144843]
[1773010933702,12.17876602,82.03,81.993,0.9144843]
[1773010935211,12.18932458,82.039,81.996,0.9144843]
[1773010935387,12.18932458,82.039,81.997,0.9144843]
[1773010935592,12.18932458,82.039,81.998,0.9144843]
[1773010935802,12.18932458,82.039,81.999,0.9144843]
[1773010936202,12.17876602,82.03,81.999,0.9144843]
[1773010936797,12.18932458,82.039,81.999,0.9144843]
[1773010937115,24.36657788,82.05,81.999,0.9144843]
[1773010937496,12.18486882,82.069,82.009,4.82477569]
[1773010937706,12.18396593,82.076,82.02,0.9144843]
[1773010937903,12.18396593,82.076,82.021,0.9144843]
[1773010938212,12.18396593,82.076,82.023,0.9144843]
[1773010938914,12.18396593,82.076,82.019,4.82477569]
[1773010938915,12.18396593,82.076,82.026,0.9144843]
[1773010939207,24.40603272,82.08,82.026,0.9144843]
[1773010940311,42.63197641,82.098,82.03,0.9144843]
[1773010940611,12.22272699,82.09,82.03,0.9144843]
[1773010940838,12.22272699,82.08,82.03,0.9144843]
[1773010941124,42.63197641,82.098,82.03,0.9144843]
[1773010941125,12.22272699,82.07,82.03,0.9144843]
[1773010941833,12.22272699,82.07,82.012,4.82477569]
[1773010941834,12.22272699,82.05,82.02,12.19214825]
[1773010942116,12.22272699,82.06,82.021,0.9144843]
[1773010942294,12.22272699,82.06,82.023,0.9144843]
[1773010942497,12.22272699,82.07,82.023,0.9144843]
[1773010942702,12.22272699,82.06,82.023,0.9144843]
[1773010943796,12.22272699,82.06,82.025,0.9144843]
[1773010944017,12.17819129,82.114,82.028,0.9144843]
[1773010944223,12.22272699,82.09,82.03,0.9144843]
[1773010944798,12.22272699,82.08,82.03,0.9144843]
[1773010945132,0.28432314,82.089,82.03,0.9144843]
[1773010945416,12.22272699,82.08,82.03,0.9144843]
[1773010945802,12.22272699,82.07,82.032,0.9144843]
[1773010946596,12.18392038,82.076,82.032,0.9144843]
[1773010946824,24.40600174,82.08,82.032,0.9144843]
[1773010947003,24.40600174,82.08,82.033,0.9144843]
[1773010947710,12.22272699,82.09,82.033,0.9144843]
[1773010947904,12.18190013,82.089,82.036,0.9144843]
[1773010948304,12.22272699,82.11,82.04,3.69383402]
[1773010948620,12.22272699,82.11,82.035,0.28432314]
[1773010948621,12.22272699,82.13,82.068,0.9144843]
[1773010949611,12.22272699,82.12,82.068,0.9144843]
[1773010950025,42.62107428,82.119,82.071,0.9144843]
[1773010950209,12.22272699,82.11,82.071,0.9144843]
[1773010950405,12.22272699,82.1,82.071,0.9144843]
[1773010950611,12.22272699,82.09,82.069,12.18486882]
[1773010951028,12.22272699,82.09,82.05,0.9144843]
[1773010951527,12.22272699,82.1,82.055,0.9144843]
[1773010952212,12.22272699,82.11,82.058,0.9144843]
[1773010952421,12.22272699,82.11,82.059,1.19880744]
[1773010952622,12.22272699,82.11,82.061,0.9144843]
[1773010952820,12.22272699,82.1,82.062,0.9144843]
[1773010954417,3.69383402,82.125,82.064,0.9144843]
[1773010954626,12.22272699,82.1,82.064,0.9144843]
[1773010955923,12.22272699,82.11,82.064,0.9144843]
[1773010956126,12.22272699,82.1,82.064,0.9144843]
[1773010956825,12.22272699,82.1,82.066,0.9144843]
[1773010957039,12.22272699,82.11,82.066,0.9144843]
[1773010958852,12.22272699,82.11,82.065,42.64911959]
[1773010958853,12.22272699,82.1,82.067,12.18516577]
[1773010959422,12.22272699,82.1,82.067,13.09965007]
[1773010959817,12.22272699,82.1,82.068,0.9144843]
[1773010960913,12.22272699,82.09,82.051,0.9144843]
[1773010961540,42.63145713,82.099,82.051,0.9144843]
[1773010961729,12.22272699,82.11,82.051,0.9144843]
[1773010961920,12.22272699,82.11,82.053,0.9144843]
[1773010963238,12.22272699,82.1,82.056,0.9144843]
[1773010965220,12.17893288,82.109,82.056,0.9144843]
[1773010965423,12.22272699,82.1,82.059,0.9144843]
[1773010966327,42.62626508,82.109,82.059,0.9144843]
[1773010966536,42.62626508,82.109,82.062,0.9144843]
[1773010967923,12.22272699,82.1,82.064,0.9144843]
[1773010969132,12.22272699,82.11,82.066,0.9144843]
[1773010969835,12.22272699,82.1,82.066,0.9144843]
[1773010970234,12.22272699,82.11,82.066,0.9144843]
[1773010970961,12.22272699,82.11,82.043,104.9]
[1773010970962,12.22272699,82.09,82.061,12.18598998]
[1773010971240,12.22272699,82.08,82.048,0.9144843]
[1773010971549,12.1833843,82.079,82.049,12.18783897]
[1773010971924,12.22272699,82.07,82.039,0.9144843]
[1773010972428,12.22272699,82.08,82.039,0.9144843]
[1773010973450,12.1833843,82.079,82.041,0.9144843]
[1773010973952,12.22272699,82.07,82.04,12.18917601]
[1773010974161,12.22272699,82.07,82.035,0.9144843]
[1773010975754,12.22272699,82.06,82.036,12.18977034]
[1773010976050,12.18486882,82.069,82.036,13.10425464]
[1773010976252,12.18486882,82.069,82.037,0.9144843]
[1773010977832,12.18486882,82.069,82.039,0.9144843]
[1773010978649,12.18486882,82.069,82.013,0.28432314]
[1773010978650,12.22272699,82.06,82.033,12.19020207]
[1773010979942,12.18635372,82.059,82.028,12.19089485]
[1773010980558,12.18635372,82.059,81.972,4.82477569]
[1773010980559,12.22272699,82.04,81.972,4.82477569]
[1773010980852,12.22272699,82.03,81.981,0.9144843]
[1773010981049,12.22272699,82.02,81.981,0.9144843]
[1773010981254,12.22272699,82.0,81.972,0.9144843]
[1773010982054,12.22272699,82.0,81.974,0.9144843]
[1773010982466,3.69383402,82.039,81.974,0.9144843]
[1773010982467,30.47764698,82.028,81.974,0.9144843]
[1773010982663,0.28432314,82.075,81.975,0.28432314]
[1773010982952,0.28432314,82.075,81.973,42.69698559]
[1773010982953,12.22272699,82.02,81.978,0.9144843]
[1773010983138,12.22272699,82.02,81.979,1.19880744]
[1773010983338,12.22272699,82.02,81.981,0.9144843]
[1773010983540,12.22272699,82.02,81.982,0.9144843]
[1773010983734,12.1922969,82.019,81.984,0.9144843]
[1773010984857,12.22272699,82.02,81.984,0.9144843]
[1773010985252,24.41489225,82.02,81.984,0.9144843]
[1773010985934,12.22272699,82.02,81.986,0.9144843]
[1773010986744,12.22272699,82.0,81.97,0.2]
[1773010986966,103.59789389,82.048,81.97,0.2]
[1773010986967,12.22272699,81.98,81.97,0.2]
[1773010987458,12.22272699,82.0,81.971,0.9144843]
[1773010987666,12.22272699,82.01,81.971,0.9144843]
[1773010987863,12.1937836,82.009,81.972,0.9144843]
[1773010989551,12.1937836,82.009,81.974,0.9144843]
[1773010990553,12.22272699,82.03,81.974,0.9144843]
[1773010990852,12.22272699,82.03,81.976,0.9144843]
[1773010991055,12.22272699,82.02,81.976,0.9144843]
[1773010991352,12.22272699,82.03,81.976,0.9144843]
[1773010991538,12.19081056,82.029,81.979,0.9144843]
[1773010991738,12.22272699,82.02,81.979,0.9144843]
[1773010992346,42.66783697,82.029,81.979,0.9144843]
[1773010992758,42.66783697,82.029,81.98,42.69333983]
[1773010992961,12.22272699,82.03,81.98,42.69333983]
[1773010992962,12.22272699,82.03,81.982,0.9144843]
[1773010993149,12.22272699,82.02,81.982,0.9144843]
[1773010993356,12.22272699,82.03,81.982,0.9144843]
[1773010994263,12.22272699,82.02,81.982,0.9144843]
[1773010994444,12.22272699,82.03,81.982,0.9144843]
[1773010994841,12.19081056,82.029,81.983,42.69177756]
[1773010995050,12.19081056,82.029,81.984,0.9144843]
[1773010995863,3.69383402,82.059,81.984,0.28432314]
[1773010996158,12.22272699,82.04,81.986,0.9144843]
[1773010996386,12.22272699,82.04,81.987,0.28432314]
[1773010996541,12.22272699,82.05,81.989,1.19880744]
[1773010996742,60.9252676,82.068,81.989,1.19880744]
[1773010996743,12.18397806,82.075,82.004,0.9144843]
[1773010996970,12.18397806,82.075,82.011,0.9144843]
[1773010997148,12.22272699,82.11,82.029,0.9144843]
[1773010997467,12.22272699,82.1,82.04,0.9144843]
[1773010998147,12.22272699,82.1,82.041,0.28432314]
[1773010998447,12.22272699,82.1,82.042,0.9144843]
[1773010998960,12.18041632,82.099,82.048,0.9144843]
[1773010999541,12.18041632,82.099,82.042,12.18876197]
[1773010999542,12.22164326,82.07,82.042,12.18876197]
[1773011000046,42.91578027,82.099,82.029,0.9144843]
[1773011000047,3.69383402,82.096,82.029,0.9144843]
[1773011000350,12.22164326,82.07,82.03,12.19066195]
[1773011000537,12.22164326,82.07,82.031,0.9144843]
[1773011000960,12.18486882,82.069,82.032,12.19036473]
[1773011001159,42.64704089,82.069,82.032,12.19036473]
[1773011001344,12.22164326,82.06,82.032,12.19036473]
[1773011002354,12.18405821,82.075,82.033,0.9144843]
[1773011002548,12.18335328,82.08,82.033,0.9144843]
[1773011002862,24.40499654,82.08,82.033,0.9144843]
[1773011003058,12.18246453,82.086,82.035,0.9144843]
[1773011003256,12.18246453,82.086,82.035,0.28432314]
[1773011003566,12.18246453,82.086,82.038,0.9144843]
[1773011003765,12.18246453,82.086,82.039,1.19880744]
[1773011004063,12.18246453,82.086,82.034,42.66523636]
[1773011004064,12.22164326,82.07,82.04,0.9144843]
[1773011004364,12.22164326,82.08,82.04,0.9144843]
[1773011004662,12.18246453,82.086,82.04,0.9144843]
[1773011005370,42.63832789,82.086,82.042,0.9144843]
[1773011005766,12.22164326,82.08,82.042,0.9144843]
[1773011007349,42.63832789,82.086,82.023,0.28432314]
[1773011007350,12.1833843,82.079,82.044,0.9144843]
[1773011007665,12.18190013,82.089,82.044,0.9144843]
[1773011007967,12.22164326,82.08,82.044,0.9144843]
[1773011009145,42.63665046,82.089,82.044,0.9144843]
[1773011009361,12.22164326,82.08,82.046,0.9144843]
[1773011010670,30.45475033,82.089,82.046,0.9144843]
[1773011011167,12.18071305,82.097,82.046,0.9144843]
[1773011011474,12.18071305,82.097,82.05,0.9144843]
[1773011011674,12.18071305,82.097,82.051,1.05664587]
[1773011011857,12.18071305,82.097,82.052,0.9144843]
[1773011013160,12.22164326,82.09,82.052,0.9144843]
[1773011013867,12.18190013,82.089,82.053,12.18724482]
[1773011014375,12.18190013,82.089,82.053,13.10172912]
[1773011014566,12.18190013,82.089,82.054,0.9144843]
[1773011014765,0.28432314,82.109,82.054,0.9144843]
[1773011014766,30.44768041,82.109,82.054,0.9144843]
[1773011014970,12.22164326,82.11,82.054,0.9144843]
[1773011014971,12.17908121,82.108,82.055,0.9144843]
[1773011015274,12.17908121,82.108,82.056,1.05664587]
[1773011015574,12.17908121,82.108,82.058,1.05664587]
[1773011015761,12.17908121,82.108,82.061,0.9144843]
[1773011015969,12.17908121,82.108,82.061,1.19880744]
[1773011016168,12.17908121,82.108,82.062,0.9144843]
[1773011016874,30.4438774,82.119,82.062,0.9144843]
[1773011017173,12.17759809,82.118,82.063,0.9144843]
[1773011018076,12.17759809,82.118,82.066,0.9144843]
[1773011019164,30.43963495,82.13,82.069,5.73925999]
[1773011019165,12.17596707,82.129,82.069,5.73925999]
[1773011019352,30.43628989,82.139,82.081,0.9144843]
[1773011019353,12.17454602,82.139,82.081,0.9144843]
[1773011019977,42.60550949,82.149,82.083,0.28432314]
[1773011020275,12.22164326,82.12,82.084,0.9144843]
[1773011020778,12.22164326,82.14,82.084,0.9144843]
[1773011021783,0.28432314,82.148,82.084,0.9144843]
[1773011021978,42.61069649,82.139,82.086,0.9144843]
[1773011024568,12.22164326,82.13,82.088,0.9144843]
[1773011025284,12.17329908,82.147,82.09,0.9144843]
[1773011025485,12.22164326,82.14,82.091,0.9144843]
[1773011025689,12.22164326,82.14,82.092,0.9144843]
[1773011026879,42.60084227,82.158,82.093,42.63457297]
[1773011027090,12.22164326,82.14,82.094,0.9144843]
[1773011027860,12.17448471,82.139,82.095,42.63353431]
[1773011028181,12.22164326,82.15,82.097,0.9144843]
[1773011028382,30.42898981,82.159,82.097,0.9144843]
[1773011028383,12.17166922,82.158,82.098,1.19880744]
[1773011028564,12.22164326,82.15,82.1,0.9144843]
[1773011028763,12.22164326,82.15,82.102,0.9144843]
[1773011029183,42.60084227,82.158,82.102,0.9144843]
[1773011029887,12.22164326,82.15,82.104,0.9144843]
[1773011030189,12.32164326,82.16,82.104,0.9144843]
[1773011031886,42.60032375,82.159,82.106,0.9144843]
[1773011034598,42.60032375,82.159,82.087,104.9]
[1773011034599,0.1,82.19,82.111,6.02358313]
[1773011034800,0.1,82.19,82.131,0.9144843]
[1773011034971,0.1,82.19,82.143,0.9144843]
[1773011035168,0.1,82.19,82.144,0.9144843]
[1773011035474,0.1,82.19,82.145,4.82477569]
[1773011035672,12.16412146,82.209,82.151,0.8644843]
[1773011035873,12.1626388,82.219,82.152,0.28432314]
[1773011036075,0.07205848,82.218,82.154,0.8644843]
[1773011036281,0.07205848,82.209,82.154,0.8644843]
[1773011036484,0.07205848,82.209,82.157,0.8644843]
[1773011036485,0.07191648,82.208,82.157,0.8644843]
[1773011036670,12.23521262,82.215,82.157,0.8644843]
[1773011036996,0.07191648,82.209,82.157,0.8644843]
[1773011039081,0.07163071,82.208,82.16,0.8644843]
[1773011040192,12.16411828,82.209,82.16,0.8644843]
[1773011040389,12.2354734,82.209,82.16,0.8644843]
[1773011040894,0.07135512,82.208,82.16,0.8644843]
[1773011041100,0.07135512,82.199,82.162,0.8644843]
[1773011041423,12.22164326,82.23,82.165,0.8644843]
[1773011041590,0.07121991,82.247,82.175,0.8644843]
[1773011041895,0.07121991,82.259,82.2,4.82477569]
[1773011042075,0.07121991,82.259,82.177,0.28432314]
[1773011042076,0.07121991,82.259,82.201,0.8644843]
[1773011042274,0.07121991,82.269,82.212,0.8644843]
[1773011042483,0.07107896,82.304,82.231,0.8644843]
[1773011042798,0.07107896,82.299,82.239,0.8644843]
[1773011042977,0.07093639,82.309,82.242,3.69383402]
[1773011043180,12.14726337,82.324,82.254,0.8644843]
[1773011043374,12.22164326,82.31,82.254,0.8644843]
[1773011043680,0.0707926,82.311,82.254,0.8644843]
[1773011043887,0.0707926,82.319,82.254,0.8644843]
[1773011044196,0.0707926,82.309,82.254,0.8644843]
[1773011045099,0.0707926,82.309,82.257,0.8644843]
[1773011045481,0.07051543,82.279,82.237,0.8644843]
[1773011045800,46.2113573,82.319,82.225,0.8644843]
[1773011045801,0.07051543,82.269,82.225,0.8644843]
[1773011046502,0.07024331,82.279,82.225,0.8644843]
[1773011046700,12.22164326,82.3,82.231,0.89653863]
[1773011046900,12.22164326,82.3,82.227,0.28432314]
[1773011046901,0.07024331,82.299,82.248,0.89653863]
[1773011047105,24.37389593,82.29,82.25,0.89653863]
[1773011047512,0.07010229,82.289,82.25,0.89653863]
[1773011048206,12.22164326,82.29,82.25,0.89653863]
[1773011048391,12.15229252,82.289,82.25,0.89653863]
[1773011049088,12.15229252,82.289,82.251,12.15790689]
[1773011049283,12.22164326,82.3,82.252,0.28432314]
[1773011049489,12.22164326,82.3,82.253,0.89653863]
[1773011049796,24.37083533,82.31,82.253,0.89653863]
[1773011050193,0.0698468,82.309,82.253,0.89653863]
[1773011050606,0.1,82.32,82.256,0.89653863]
[1773011050607,12.14858009,82.315,82.256,0.89653863]
[1773011050806,12.14858009,82.315,82.257,0.89653863]
[1773011051012,12.14858009,82.315,82.258,0.89653863]
[1773011051304,12.14858009,82.315,82.262,1.0387002]
[1773011051506,12.14858009,82.315,82.263,0.89653863]
[1773011052305,12.22164326,82.31,82.263,0.89653863]
[1773011052805,12.14858009,82.315,82.263,0.89653863]
[1773011053511,12.14858009,82.315,82.237,1.21599766]
[1773011053512,12.14217937,82.358,82.269,4.82477569]
[1773011053703,0.06384525,82.372,82.29,5.72131432]
[1773011053902,0.06384525,82.372,82.268,0.28432314]
[1773011053903,12.14101412,82.366,82.302,0.89653863]
[1773011054107,12.22164326,82.39,82.32,0.89653863]
[1773011054310,0.06192369,82.389,82.322,0.89653863]
[1773011054506,12.13695338,82.393,82.322,0.89653863]
[1773011054507,12.28356695,82.38,82.322,0.89653863]
[1773011054805,12.28356695,82.38,82.288,11.70084624]
[1773011054806,0.06192369,82.349,82.311,0.89653863]
[1773011054992,12.22164326,82.37,82.311,0.89653863]
[1773011055192,0.06002811,82.359,82.311,0.89653863]
[1773011055408,0.06002811,82.348,82.312,12.14889688]
[1773011055609,0.06002811,82.348,82.313,0.89653863]
[1773011055808,12.22164326,82.35,82.313,0.89653863]
[1773011055990,12.14196384,82.359,82.313,0.89653863]
[1773011056196,12.22164326,82.35,82.313,0.89653863]
[1773011056396,12.14196384,82.359,82.313,0.89653863]
[1773011057411,12.22164326,82.35,82.314,12.14860169]
[1773011057594,0.05630362,82.349,82.314,12.14860169]
[1773011058212,0.05630362,82.339,82.307,12.14963234]
[1773011058610,0.05447517,82.349,82.308,0.89653863]
[1773011059113,12.22164326,82.34,82.308,0.89653863]
[1773011059711,12.1419174,82.34,82.309,12.14933968]
[1773011060107,12.1419174,82.34,82.276,3.69383402]
[1773011060108,0.05266638,82.329,82.287,0.89653863]
[1773011060626,12.1419174,82.33,82.287,0.89653863]
[1773011061218,12.1419174,82.33,82.279,12.15376949]
[1773011061219,0.04911546,82.319,82.279,12.15376949]
[1773011061401,12.1419174,82.33,82.28,0.89653863]
[1773011061602,12.1419174,82.34,82.284,0.89653863]
[1773011061909,24.2867827,82.34,82.284,0.89653863]
[1773011062620,0.04736772,82.358,82.291,0.89653863]
[1773011062824,12.1419174,82.34,82.294,0.89653863]
[1773011063120,12.1419174,82.33,82.294,0.89653863]
[1773011063330,12.1419174,82.33,82.282,42.53664227]
[1773011063331,0.04736772,82.329,82.283,0.89653863]
[1773011063830,0.04564051,82.328,82.285,0.89653863]
[1773011064205,0.04564051,82.319,82.285,0.89653863]
[1773011064421,12.19032317,82.329,82.285,0.89653863]
[1773011064934,12.1419174,82.32,82.285,0.89653863]
[1773011065604,0.04224753,82.308,82.274,17.30475113]
[1773011065802,42.52268888,82.309,82.22,12.43150321]
[1773011065803,12.1419174,82.28,82.255,12.15731566]
[1773011066127,42.52268888,82.309,82.255,12.15731566]
[1773011066128,12.1419174,82.29,82.256,0.89653863]
[1773011066496,42.52268888,82.309,82.256,0.89653863]
[1773011066497,12.14933968,82.309,82.256,0.89653863]
[1773011066920,12.1419174,82.3,82.256,0.89653863]
[1773011067421,42.52268888,82.309,82.244,0.28432314]
[1773011067422,12.1419174,82.28,82.249,12.15808384]
[1773011067601,12.15376949,82.279,82.249,12.15808384]
[1773011067796,12.1419174,82.27,82.244,12.15881409]
[1773011067997,12.15376949,82.279,82.245,0.89653863]
[1773011068222,12.15376949,82.279,82.244,12.15881409]
[1773011068716,12.1419174,82.27,82.233,0.89653863]
[1773011068919,12.1419174,82.26,82.223,31.30152613]
[1773011069419,12.1419174,82.26,82.224,0.89653863]
[1773011069924,12.1419174,82.27,82.226,0.89653863]
[1773011070128,12.15439063,82.275,82.226,0.89653863]
[1773011070320,12.1419174,82.29,82.231,0.89653863]
[1773011070629,12.15081592,82.299,82.241,0.89653863]
[1773011071924,12.15081592,82.299,82.244,0.89653863]
[1773011072514,12.1419174,82.31,82.244,0.89653863]
[1773011072721,12.1419174,82.3,82.244,0.89653863]
[1773011073298,42.51958937,82.315,82.243,0.28432314]
[1773011073299,12.1419174,82.31,82.251,0.88560805]
[1773011073928,12.14933968,82.309,82.254,0.88560805]
[1773011074230,12.33622523,82.42,82.261,0.88560805]
[1773011074403,12.1452081,82.337,82.272,0.88560805]
[1773011076130,12.1452081,82.337,82.274,0.88560805]
[1773011078308,12.1452081,82.337,82.277,0.88560805]
[1773011080029,12.1419174,82.31,82.277,0.88560805]
[1773011080217,12.1419174,82.31,82.246,8.51860971]
[1773011080218,42.51235894,82.329,82.279,0.88560805]
[1773011080530,12.1419174,82.32,82.279,0.88560805]
[1773011081434,12.1419174,82.31,82.278,12.1539172]
[1773011082425,12.14786379,82.319,82.271,0.88560805]
[1773011083218,42.51752328,82.319,82.271,0.88560805]
[1773011084409,12.1419174,82.33,82.273,0.88560805]
[1773011084610,12.1419174,82.32,82.273,0.88560805]
[1773011086636,12.1419174,82.32,82.257,0.28432314]
[1773011086637,12.14786379,82.319,82.275,0.88560805]
[1773011087832,12.1419174,82.32,82.275,0.88560805]
[1773011088514,12.14786379,82.319,82.277,0.88560805]
[1773011089134,42.51752328,82.319,82.277,0.88560805]
[1773011089515,12.1419174,82.31,82.276,42.53974427]
[1773011089721,12.1419174,82.31,82.276,12.15421265]
[1773011090423,12.14933968,82.309,82.271,0.88560805]
[1773011091236,12.14933968,82.309,82.262,0.88560805]
[1773011091437,12.1419174,82.3,82.262,0.88560805]
[1773011091817,12.14933968,82.309,82.262,0.88560805]
[1773011092222,42.52268888,82.309,82.262,0.88560805]
[1773011092922,42.52268888,82.309,82.264,0.88560805]
[1773011094836,42.52268888,82.309,82.266,0.88560805]
[1773011096540,12.14933968,82.309,82.266,0.88560805]
[1773011096747,12.14801137,82.318,82.266,0.88560805]
[1773011096947,12.14801137,82.318,82.268,0.88560805]
[1773011097145,30.36977359,82.363,82.267,42.5443981]
[1773011097146,42.4953255,82.362,82.269,1.21552468]
[1773011097445,12.1419174,82.33,82.278,0.88560805]
[1773011098032,106.89676739,82.362,82.278,0.88560805]
[1773011098229,12.1419174,82.36,82.293,4.82477569]
[1773011098438,12.14152157,82.362,82.294,0.88560805]
[1773011098638,12.1419174,82.36,82.294,0.88560805]
[1773011098830,12.14196384,82.359,82.295,103.28695545]
[1773011099138,12.14196384,82.359,82.297,0.88560805]
[1773011099443,12.14019497,82.371,82.297,0.88560805]
[1773011099642,12.1419174,82.37,82.297,0.88560805]
[1773011100141,12.1419174,82.36,82.297,0.88560805]
[1773011100845,7.43476428,82.382,82.307,108.09667235]
[1773011101037,12.13754263,82.389,82.316,0.88560805]
[1773011101237,12.13754263,82.389,82.317,0.88560805]
[1773011101736,12.1419174,82.41,82.334,0.88560805]
[1773011102049,12.13595484,82.4,82.335,0.88560805]
[1773011102242,12.1419174,82.41,82.336,0.28432314]
[1773011102539,12.13464384,82.409,82.337,0.88560805]
[1773011102748,12.13373088,82.415,82.345,0.7940723]
[1773011103041,12.13373088,82.415,82.337,0.28432314]
[1773011103042,0.20378014,82.399,82.348,0.84134805]
[1773011103243,0.20378014,82.429,82.353,5.66612374]
[1773011103434,0.20378014,82.429,82.354,0.84134805]
[1773011103435,0.20292505,82.419,82.354,0.84134805]